bitfinex/quotes_ETHUSD_20220119
["timestamp","ask_amount","ask_price","bid_price","bid_amount"]
[1642580892820,0.00170527,3061.1,3060.4,2.87609685]
[1642580893019,1.00170527,3061.1,3060.4,1.24223685]
[1642580893222,0.00113684,3061.0,3060.5,0.00170527]
[1642580893420,0.81713,3060.9,3060.5,0.00170527]
[1642580893617,0.81713,3060.9,3060.4,0.0022737]
[1642580893819,0.00113684,3061.0,3060.4,0.0022737]
[1642580894919,0.00113684,3061.0,3060.4,1.87847841]
[1642580895121,0.00113684,3061.0,3060.4,3.54447411]
[1642580895321,0.00113684,3061.0,3060.5,0.00170527]
[1642580896570,6.24173685,3061.2,3060.5,0.00170527]
[1642580896571,5.94797369,3061.2,3060.9,1.32182444]
[1642580897073,5.94797369,3061.2,3060.7,0.81693]
[1642580897470,5.94797369,3061.2,3060.8,0.00113684]
[1642580897671,5.94797369,3061.2,3060.8,0.81801734]
[1642580898276,5.94797369,3061.2,3060.9,1.43561117]
[1642580898471,5.94797369,3061.2,3060.9,1.13561117]
[1642580898671,5.94797369,3061.2,3060.8,0.00113684]
[1642580899072,5.94797369,3061.2,3060.5,0.00284211]
[1642580899271,5.94797369,3061.2,3060.4,0.00341054]
[1642580899822,5.94797369,3061.2,3060.4,0.82039454]
[1642580900023,5.94797369,3061.2,3060.5,1.50604215]
[1642580900226,5.94797369,3061.2,3060.5,1.50888426]
[1642580900424,5.94797369,3061.2,3060.6,0.00227369]
[1642580900627,6.76499369,3061.2,3060.6,0.00227369]
[1642580901229,5.94797369,3061.2,3061.0,1.12547443]
[1642580901625,5.65547369,3061.2,3061.0,1.42547443]
[1642580902430,5.65547369,3061.2,3061.0,2.24234443]
[1642580903977,5.65547369,3061.2,3061.1,2.85]
[1642580904178,5.65547369,3061.2,3061.1,4.70686274]
[1642580904377,5.65661054,3061.2,3061.1,5.00686274]
[1642580904577,5.65661054,3061.2,3061.1,6.17017274]
[1642580904979,5.65661054,3061.2,3061.1,9.87017274]
[1642580905779,5.65661054,3061.2,3061.1,9.87758883]
[1642580906781,5.35551054,3061.2,3061.1,9.87758883]
[1642580907625,5.35551054,3061.2,3061.1,6.17758883]
[1642580907827,5.35551054,3061.2,3061.1,8.9549616]
[1642580908635,2.8e-05,3061.4,3061.2,7.3]
[1642580908837,4.3e-05,3061.7,3061.4,7.3]
[1642580909032,0.0036715,3062.2,3061.6,8.67306174]
[1642580909231,0.0036715,3062.2,3061.7,5.31631648]
[1642580909435,0.0036715,3062.2,3061.8,2.77737277]
[1642580909734,0.0036715,3062.2,3061.9,1.0]
[1642580909932,0.0036715,3062.2,3062.1,8.74389005]
[1642580910136,0.0036715,3062.2,3062.1,11.35795282]
[1642580910333,0.00935574,3062.2,3062.1,11.65795282]
[1642580911182,0.00935574,3062.2,3062.1,11.82126282]
[1642580911976,2.76262724,3063.1,3062.3,0.8164]
[1642580912379,0.00341054,3062.8,3062.3,0.8164]
[1642580912678,2.50284211,3062.7,3062.5,0.8163912]
[1642580912880,0.00284211,3062.7,3062.5,0.8163912]
[1642580913079,0.00227369,3062.6,3062.5,0.8163912]
[1642580913278,0.00227369,3062.6,3062.5,2.4492412]
[1642580914178,0.00227369,3062.6,3062.5,1.63285]
[1642580914380,0.00227369,3062.6,3061.9,4.39544]
[1642580914381,0.00227369,3062.6,3062.1,1.63307]
[1642580914622,0.00227369,3062.6,3061.8,0.00736488]
[1642580914825,0.81835527,3062.5,3061.8,0.00736488]
[1642580915021,0.81835527,3062.5,3061.9,0.00170527]
[1642580915022,0.00170527,3062.5,3061.9,0.00170527]
[1642580915221,0.00113684,3062.4,3061.9,0.00170527]
[1642580915421,0.81679,3062.3,3061.9,0.00170527]
[1642580915623,2.06784572,3062.2,3061.9,0.00170527]
[1642580915821,2.88458572,3062.2,3061.9,0.00170527]
[1642580916231,2.88458572,3062.2,3061.6,2.78067097]
[1642580916427,3.70133572,3062.2,3061.7,0.00284212]
[1642580916628,4.51826572,3062.2,3061.7,0.00284212]
[1642580916928,2.06784572,3062.2,3061.6,0.00341054]
[1642580917127,1.77524572,3062.2,3061.6,2.78059501]
[1642580917530,2.59199572,3062.2,3061.7,0.00284212]
[1642580917940,1.77524572,3062.2,3061.6,0.00341054]
[1642580918227,1.77524572,3062.2,3061.6,2.78059065]
[1642580918670,1.77524572,3062.2,3061.7,0.81956212]
[1642580919068,1.77524572,3062.2,3061.8,0.0022737]
[1642580920071,0.81675,3062.1,3061.8,0.0022737]
[1642580920272,2.77524572,3062.2,3061.8,0.0022737]
[1642580920273,1.77524572,3062.2,3061.8,0.0022737]
[1642580920474,1.77524572,3062.2,3061.6,0.00341054]
[1642580920671,1.77524572,3062.2,3061.6,2.78055549]
[1642580920873,1.77524572,3062.2,3061.9,0.00737956]
[1642580921275,1.1626,3062.5,3062.0,0.00113685]
[1642580921479,1.0,3062.6,3062.0,0.00113685]
[1642580921676,0.00113684,3062.4,3062.0,0.00113685]
[1642580921877,0.00170527,3062.5,3062.0,0.00113685]
[1642580922116,0.52807369,3062.7,3062.0,0.00113685]
[1642580922316,0.52807369,3062.7,3062.0,0.00341054]
[1642580922317,1.83233086,3062.5,3062.0,0.00341054]
[1642580922523,1.83233086,3062.5,3062.1,0.81659]
[1642580922920,1.83233086,3062.5,3062.2,0.00227369]
[1642580923725,1.83233086,3062.5,3062.2,0.81882369]
[1642580923924,1.0,3062.7,3062.2,0.81882369]
[1642580924132,1.0,3062.8,3062.3,0.00170527]
[1642580924426,3.94602724,3063.1,3062.4,0.07109405]
[1642580924627,0.00113685,3062.8,3062.3,1.29405559]
[1642580924826,3.94602724,3063.1,3062.5,0.81647]
[1642580924827,0.00227369,3063.0,3062.5,0.81647]
[1642580925228,0.00170527,3062.9,3062.5,0.81647]
[1642580925626,0.00227369,3063.0,3062.5,0.81647]
[1642580925874,0.81654,3062.9,3062.5,0.8238242]
[1642580926072,0.81824527,3062.9,3062.5,0.0073542]
[1642580926875,2.01837457,3062.6,3062.5,0.0073542]
[1642580927271,0.81673,3062.7,3062.5,0.0073542]
[1642580928473,3.10134134,3062.7,3062.5,0.0073542]
[1642580929074,1.0,3062.6,3062.5,0.0073542]
[1642580929281,3.22960372,3062.6,3062.5,0.0073542]
[1642580929916,1.0,3062.6,3062.5,0.0073542]
[1642580930822,4.28184134,3062.7,3062.4,0.00113685]
[1642580931022,1.0,3062.6,3062.4,0.00113685]
[1642580931223,4.28184134,3062.7,3062.4,0.00113685]
[1642580931424,6.0167,3062.5,3062.4,0.00113685]
[1642580931624,7.0167,3062.5,3062.4,0.00113685]
[1642580932423,6.7189,3062.5,3062.4,0.00113685]
[1642580933473,1.5189,3062.5,3062.4,0.00113685]
[1642580933676,4.1689,3062.5,3062.4,0.00113685]
[1642580934272,3.1689,3062.5,3062.4,0.00113685]
[1642580934675,4.1689,3062.5,3062.4,0.00113685]
[1642580934873,4.33208,3062.5,3062.4,0.00113685]
[1642580935675,4.1689,3062.5,3062.4,0.00113685]
[1642580936078,4.1689,3062.5,3062.3,0.00170527]
[1642580936278,5.4,3062.4,3062.3,0.00170527]
[1642580936779,7.92547528,3062.4,3062.3,0.00170527]
[1642580936984,8.38865528,3062.4,3062.3,0.00170527]
[1642580937221,7.25,3062.3,3062.2,0.00588601]
[1642580937423,9.3509669,3062.3,3062.2,0.00588601]
[1642580937621,10.0500669,3062.3,3062.2,0.00588601]
[1642580938027,10.0500669,3062.3,3061.1,0.0036715]
[1642580938028,0.81701,3062.0,3061.1,0.0036715]
[1642580938225,0.8170634,3061.7,3061.1,0.0036715]
[1642580938423,0.8170634,3061.7,3061.2,0.00625266]
[1642580938624,0.8170634,3061.7,3061.3,2.77756718]
[1642580938824,0.3,3061.6,3061.3,2.77756718]
[1642580939024,2.66455351,3061.9,3061.4,0.00511581]
[1642580939226,2.55,3061.5,3061.4,0.00511581]
[1642580939424,1.11704,3061.6,3061.4,2.78268451]
[1642580939630,1.66485893,3062.1,3061.4,0.00511581]
[1642580939827,1.63383,3062.1,3061.5,2.78201577]
[1642580940025,1.3,3062.1,3061.6,2.77746838]
[1642580940225,1.6,3062.1,3061.6,2.78144734]
[1642580940424,1.3,3062.1,3061.7,0.00341054]
[1642580940876,1.0,3062.1,3061.7,0.00341054]
[1642580941074,1.0,3062.1,3061.3,2.7830767]
[1642580941275,1.0,3062.1,3061.4,2.77739247]
[1642580941474,1.0,3062.1,3061.4,2.78250828]
[1642580941674,1.63379,3061.9,3061.5,2.78193986]
[1642580941875,1.63379,3061.9,3061.6,2.77739247]
[1642580942077,1.81683,3062.0,3061.6,0.00397896]
[1642580942281,0.81683,3062.0,3061.7,0.00341054]
[1642580942476,0.81683,3062.0,3061.5,2.7819189]
[1642580942677,0.52443,3062.0,3061.5,0.00454739]
[1642580942877,2.05718967,3061.9,3061.6,0.00397896]
[1642580943077,1.0,3061.9,3061.6,0.00397896]
[1642580943278,0.81689,3061.8,3061.6,0.00397896]
[1642580943476,1.63385,3061.8,3061.6,0.00397896]
[1642580943879,6.1,3061.7,3061.6,0.00397896]
[1642580944078,7.1,3061.7,3061.6,0.00397896]
[1642580944278,7.56318,3061.7,3061.6,0.00397896]
[1642580944717,9.89185072,3061.7,3061.6,0.00397896]
[1642580945317,10.19185072,3061.7,3061.6,0.00397896]
[1642580946822,9.89185072,3061.7,3061.6,0.00397896]
[1642580947427,1.46318,3061.7,3061.6,0.00397896]
[1642580947625,0.46318,3061.7,3061.6,0.00397896]
[1642580947823,1.16318,3061.7,3061.6,0.00397896]
[1642580948023,0.16318,3061.7,3061.5,0.00454739]
[1642580948223,0.8169,3061.6,3061.5,0.00454739]
[1642580948674,1.8169,3061.6,3061.5,0.00454739]
[1642580949074,4.16603355,3061.6,3061.5,0.00454739]
[1642580949273,4.46603355,3061.6,3061.5,0.00454739]
[1642580949476,7.25,3061.5,3061.1,0.001828]
[1642580949676,2.89774759,3061.4,3061.1,0.001828]
[1642580949875,19.93732,3061.3,3061.2,0.00170527]
[1642580950080,1.69626993,3060.7,3060.3,0.001828]
[1642580950278,1.63461,3060.7,3060.3,0.001828]
[1642580950476,2.23461,3060.7,3060.4,0.00454739]
[1642580950676,2.23461,3060.7,3060.5,2.77819449]
[1642580950977,1.93461,3060.7,3060.6,0.00341054]
[1642580951175,4.01818988,3060.7,3060.6,2.78160503]
[1642580951377,4.01818988,3060.7,3060.6,0.00341054]
[1642580951378,7.38150988,3060.7,3060.6,0.00341054]
[1642580951576,3.9152322,3060.7,3060.6,0.00341054]
[1642580951776,3.9152322,3060.7,3060.5,0.00397896]
[1642580951977,5.0,3060.6,3060.5,0.00397896]
[1642580952223,5.0,3060.6,3060.5,2.78216344]
[1642580952628,5.81726,3060.6,3060.5,2.78216344]
[1642580953027,5.67958,3060.6,3060.5,2.78216344]
[1642580953227,7.59264376,3060.6,3060.5,0.00397896]
[1642580953426,8.05596376,3060.6,3060.5,0.00397896]
[1642580953626,5.67958,3060.6,3060.5,0.00397896]
[1642580953828,5.51626,3060.6,3060.5,0.00397896]
[1642580954329,1.51626,3060.6,3060.5,0.00397896]
[1642580955333,0.699,3060.6,3060.5,0.00397896]
[1642580955531,0.04558171,3060.7,3060.5,0.00397896]
[1642580955731,0.04558171,3060.7,3060.6,2.77798953]
[1642580956193,0.04558171,3060.7,3060.6,2.78140007]
[1642580958196,0.56354171,3061.0,3060.6,3.59846007]
[1642580958395,0.56354171,3061.0,3060.6,0.82047054]
[1642580958596,0.56354171,3061.0,3060.7,0.00284212]
[1642580959195,0.56354171,3061.0,3060.5,2.78192674]
[1642580959396,0.56354171,3061.0,3060.6,0.00341054]
[1642580959633,0.56354171,3061.0,3060.7,0.81708]
[1642580960018,0.56354171,3061.0,3060.8,0.00227369]
[1642580960219,1.0,3061.1,3060.8,0.00227369]
[1642580960424,1.0,3061.1,3060.9,0.08434427]
[1642580960621,0.817,3061.2,3060.9,0.08434427]
[1642580960824,0.817,3061.2,3061.0,0.00113685]
[1642580961225,0.817,3061.2,3060.9,2.77936491]
[1642580961424,0.817,3061.2,3060.9,0.00170527]
[1642580961625,0.817,3061.2,3061.0,0.00113685]
[1642580961827,2.13353566,3061.1,3060.9,0.00170527]
[1642580962027,8.0673,3061.0,3060.9,0.00170527]
[1642580962226,8.0673,3061.0,3060.3,0.001828]
[1642580962227,7.25,3060.9,3060.3,0.001828]
[1642580962424,2.32842147,3060.8,3060.4,0.00284212]
[1642580962625,2.62842147,3060.8,3060.4,0.00284212]
[1642580963029,1.0,3060.7,3060.4,0.00284212]
[1642580963227,0.81728,3060.6,3060.4,0.00284212]
[1642580964977,0.81728,3060.6,3060.4,2.780926]
[1642580965176,0.81728,3060.6,3060.4,0.00284212]
[1642580965377,0.81728,3060.6,3060.5,0.00227369]
[1642580966576,1.81728,3060.6,3060.5,0.00227369]
[1642580966976,0.81728,3060.6,3060.5,0.00227369]
[1642580967223,1.81728,3060.6,3060.5,0.00227369]
[1642580967423,0.81728,3060.6,3060.5,0.00227369]
[1642580967626,0.86844536,3060.6,3060.5,0.00227369]
[1642580968227,0.05116536,3060.6,3060.5,0.00227369]
[1642580968423,0.56786536,3060.8,3060.5,0.00227369]
[1642580968622,0.56786536,3060.8,3060.6,0.81709]
[1642580969027,0.56786536,3060.8,3060.7,0.00113685]
[1642580970731,0.56786536,3060.8,3060.7,0.01067189]
[1642580973579,0.26966536,3060.8,3060.7,0.01067189]
[1642580975122,7.41966536,3060.8,3060.7,0.01067189]
[1642580975522,7.25,3060.7,3060.3,0.001828]
[1642580975723,8.25,3060.7,3060.3,0.001828]
[1642580975930,0.98068,3060.6,3060.4,0.00170527]
[1642580977127,4.01332,3060.5,3060.4,0.00170527]
[1642580977527,5.01332,3060.5,3060.4,0.00170527]
[1642580978477,1.16332,3060.5,3060.4,0.00170527]
[1642580978674,0.81736,3060.6,3060.4,0.00170527]
[1642580978675,1.68798,3060.6,3060.4,0.00170527]
[1642580978874,1.68798,3060.6,3060.4,2.78004987]
[1642580979281,1.68798,3060.6,3060.5,0.00113684]
[1642580979680,0.68798,3060.6,3060.5,0.00113684]
[1642580981985,4.2131,3061.4,3060.5,1.88242946]
[1642580982227,6.5339,3061.3,3060.7,0.81695]
[1642580982429,6.5339,3061.3,3060.8,2.87777366]
[1642580982430,0.0022737,3061.1,3060.8,2.87777366]
[1642580982624,0.0022737,3061.1,3060.9,2.7783446]
[1642580982824,0.00170527,3061.0,3060.8,2.7783446]
[1642580983025,0.00170527,3061.0,3060.7,0.81695]
[1642580983231,0.00113685,3060.9,3060.7,0.81695]
[1642580983633,6.24444212,3061.3,3060.7,0.81695]
[1642580984027,1.0,3061.2,3060.8,0.81936369]
[1642580984229,1.0,3061.2,3060.8,0.00227369]
[1642580984230,8.40830722,3060.9,3060.8,0.00227369]
[1642580984431,8.40830722,3060.9,3060.3,0.001828]
[1642580984629,1.81729,3060.8,3060.3,0.001828]
[1642580984833,1.81729,3060.8,3060.4,0.00454739]
[1642580985330,0.8173104,3060.7,3060.4,0.00454739]
[1642580985531,0.81737,3060.6,3060.4,0.00454739]
[1642580985731,7.25,3060.5,3060.3,0.001828]
[1642580985983,7.39139058,3060.4,3060.3,0.001828]
[1642580986190,8.86239058,3060.4,3060.3,0.001828]
[1642580986382,0.8175306,3060.2,3059.6,0.001828]
[1642580986584,0.81753,3060.0,3059.6,0.001828]
[1642580986781,0.81753,3060.0,3059.7,0.00397896]
[1642580986982,1.81753,3060.0,3059.7,0.00397896]
[1642580987581,2.6350565,3060.0,3059.7,0.00397896]
[1642580988380,3.4526065,3060.0,3059.7,0.00397896]
[1642580988785,3.1580065,3060.0,3059.7,0.00397896]
[1642580990050,3.4580065,3060.0,3059.7,0.00397896]
[1642580990450,3.4580065,3060.0,3059.6,0.001828]
[1642580990451,0.81757,3059.8,3059.6,0.001828]
[1642580990651,1.81757,3059.8,3059.6,0.001828]
[1642580992052,0.81757,3059.8,3059.6,0.001828]
[1642580992251,1.81757,3059.8,3059.6,0.001828]
[1642580992551,0.81757,3059.8,3059.6,0.001828]
[1642580992751,1.81757,3059.8,3059.6,0.001828]
[1642580993585,0.81757,3059.8,3059.6,0.001828]
[1642580993788,1.52797,3059.8,3059.6,0.001828]
[1642580994588,0.52797,3059.8,3059.6,0.001828]
[1642580994790,1.52797,3059.8,3059.6,0.001828]
[1642580994991,0.52797,3059.8,3059.6,0.001828]
[1642580995192,2.63626685,3059.9,3059.6,0.001828]
[1642580995193,0.00113685,3059.9,3059.6,0.001828]
[1642580995393,0.00113685,3059.9,3059.6,0.819088]
[1642580995594,0.00113685,3059.9,3059.7,0.3]
[1642580997931,0.00113685,3059.9,3059.6,0.819088]
[1642580998132,0.81732,3059.8,3059.6,5.240018]
[1642580998333,0.81732,3059.8,3059.7,2.77832184]
[1642580998935,0.51882,3059.8,3059.7,2.77832184]
[1642580999737,0.00113685,3059.9,3059.7,2.77832184]
[1642581000343,7.25,3059.8,3059.6,0.001828]
[1642581000542,7.371,3059.7,3059.6,0.001828]
[1642581000888,0.817695,3059.5,3058.8,0.001828]
[1642581001087,0.471,3059.4,3058.8,0.001828]
[1642581001282,7.98941,3059.4,3058.8,0.001828]
[1642581001482,7.98941,3059.4,3058.9,1.11766274]
[1642581001691,0.471,3059.4,3059.0,3.64260816]
[1642581001885,0.471,3059.4,3059.0,1.64260816]
[1642581002282,0.471,3059.4,3058.9,2.7602709]
[1642581002283,0.81771,3059.3,3058.9,2.7602709]
[1642581002486,0.81771,3059.3,3058.9,3.3602709]
[1642581002882,0.81771,3059.3,3059.0,1.64260816]
[1642581003183,0.81771,3059.3,3058.9,3.0602709]
[1642581003382,0.81771,3059.3,3058.9,1.41766274]
[1642581003582,0.81771,3059.3,3059.1,0.81748]
[1642581003982,0.52591,3059.3,3059.1,0.81748]
[1642581004384,0.52591,3059.3,3058.8,2.46200616]
[1642581005433,0.52591,3059.3,3058.9,0.00454739]
[1642581005633,1.52591,3059.3,3058.9,0.82207739]
[1642581005832,0.52591,3059.3,3058.9,0.82207739]
[1642581006034,1.52591,3059.3,3059.0,0.00397896]
[1642581007033,0.52591,3059.3,3059.0,0.00397896]
[1642581008384,1.63532,3059.2,3059.0,0.00397896]
[1642581008579,0.81766,3059.1,3059.0,0.00397896]
[1642581009182,0.53325739,3059.1,3059.0,0.00397896]
[1642581009386,0.53325739,3059.1,3059.0,0.75994227]
[1642581009583,0.51706,3059.1,3059.0,0.75994227]
[1642581009782,0.51706,3059.1,3059.0,1.51590558]
[1642581009983,1.5286401,3059.1,3059.0,1.51590558]
[1642581010583,0.5286401,3059.1,3059.0,1.51590558]
[1642581014128,0.2363401,3059.1,3059.0,1.51590558]
[1642581014932,0.0115801,3059.1,3059.0,3.81590558]
[1642581015139,0.0115801,3059.1,3059.0,4.27908558]
[1642581015332,0.81725,3060.4,3059.7,1.22336186]
[1642581015533,0.8288301,3060.4,3059.9,0.81721]
[1642581015896,0.00284212,3060.2,3059.9,0.81721]
[1642581016289,0.00227369,3060.1,3059.9,0.81721]
[1642581016490,0.00227369,3060.1,3059.9,1.41721]
[1642581016689,0.00170527,3060.0,3059.9,10.8594786]
[1642581016887,0.00170527,3060.0,3059.9,7.85]
[1642581017288,0.00170527,3060.0,3059.9,0.3]
[1642581017491,0.00170527,3060.0,3059.6,1.63441]
[1642581017691,0.00170527,3060.0,3059.5,0.81735]
[1642581017891,0.00113685,3059.9,3059.3,5.7279]
[1642581018292,2.20739299,3060.2,3059.4,0.00170527]
[1642581018498,0.81741,3059.8,3059.4,0.00170527]
[1642581018695,0.81741,3059.8,3059.1,0.0231602]
[1642581018696,2.71325186,3059.7,3059.1,0.0231602]
[1642581018894,0.47270527,3059.7,3059.1,0.0231602]
[1642581019094,0.00113685,3059.6,3059.2,0.00113685]
[1642581019294,0.471,3059.6,3059.2,0.00113685]
[1642581019494,0.471,3059.6,3059.2,0.0022737]
[1642581019929,0.8175,3059.5,3059.2,0.0022737]
[1642581020534,0.8175,3059.5,3059.2,2.7811443]
[1642581020730,0.8175,3059.5,3059.3,2.7788706]
[1642581020931,0.8175,3059.5,3059.4,3.53483391]
[1642581021131,0.8175,3059.5,3059.4,4.29193407]
[1642581021833,1.634965,3059.5,3059.4,4.29193407]
[1642581022237,3.270025,3059.5,3059.1,0.0231602]
[1642581022433,1.635,3059.4,3059.1,0.0231602]
[1642581022634,1.635,3059.4,3059.2,0.00113685]
[1642581023035,0.8175,3059.5,3059.3,1.47910673]
[1642581023237,0.8175,3059.5,3059.4,7.41318]
[1642581023509,4.61720062,3060.0,3059.8,1.52674796]
[1642581023907,0.82002212,3059.9,3059.8,1.52674796]
[1642581024308,0.52632212,3059.9,3059.8,1.52674796]
[1642581025014,2.98272062,3060.0,3059.9,3.95]
[1642581025410,1.6343,3060.3,3059.9,3.95]
[1642581025614,0.81714,3060.2,3059.9,4.76712]
[1642581025815,0.0115801,3060.4,3059.9,4.76712]
[1642581025816,6.24444212,3061.3,3060.1,7.25]
[1642581026014,6.24444212,3061.3,3060.2,1.16318]
[1642581026015,7.88984222,3061.3,3060.2,1.16318]
[1642581026212,7.88984222,3061.3,3061.0,1.46243385]
[1642581026513,7.88984222,3061.3,3060.3,0.0639419]
[1642581026514,6.25602222,3061.3,3060.7,0.16318]
[1642581027013,6.25602222,3061.3,3061.0,0.81686]
[1642581027014,7.07285222,3061.3,3061.0,0.81686]
[1642581027839,6.25602222,3061.3,3061.0,0.81686]
[1642581028240,6.25602222,3061.3,3061.1,0.3]
[1642581028639,7.07288222,3061.3,3061.0,2.26416]
[1642581028839,7.07288222,3061.3,3061.0,1.98916]
[1642581029043,7.07288222,3061.3,3061.1,0.3]
[1642581029440,6.77258222,3061.3,3061.1,0.3]
[1642581030882,6.77258222,3061.3,3061.2,0.00927762]
[1642581031290,6.77883488,3061.3,3061.2,0.00927762]
[1642581032490,5.96197488,3061.3,3061.2,0.00927762]
[1642581033392,8.09347562,3061.3,3061.2,0.00927762]
[1642581033592,6.96197488,3061.3,3061.2,0.00927762]
[1642581034755,6.65967488,3061.3,3061.2,0.00927762]
[1642581035141,0.81716,3061.0,3060.1,3.7638]
[1642581035344,0.81717,3060.8,3060.0,0.2668]
[1642581035549,5.71807838,3060.7,3060.0,0.2668]
[1642581035744,7.05540489,3060.7,3060.0,0.2668]
[1642581035946,0.00227369,3060.6,3060.0,0.2668]
[1642581036146,0.81743,3060.4,3060.0,0.2668]
[1642581036348,2.7070126,3060.3,3060.0,0.2668]
[1642581036546,0.471,3060.2,3060.0,0.2668]
[1642581036744,1.471,3060.2,3060.0,0.2668]
[1642581037245,49.5938566,3060.2,3060.0,0.2668]
[1642581037445,1.28839,3060.2,3060.0,0.2668]
[1642581039883,0.98949,3060.2,3060.0,0.2668]
[1642581041890,0.81739,3060.2,3060.0,0.2668]
[1642581042125,0.81739,3060.2,3060.1,2.77824914]
[1642581043235,0.81823684,3060.4,3060.0,2.77824914]
[1642581043629,0.81823684,3060.4,3060.1,1.49884134]
[1642581043941,0.81823684,3060.4,3060.2,2.77824914]
[1642581044632,1.63538684,3060.4,3060.2,2.77824914]
[1642581045033,1.33758684,3060.4,3060.2,2.77824914]
[1642581045632,0.81823684,3060.4,3060.2,2.77824914]
[1642581046283,0.81823684,3060.4,3059.4,1.1981]
[1642581046481,0.81823684,3060.4,3059.5,2.77830925]
[1642581046681,0.81823684,3060.4,3059.5,2.78228822]
[1642581046682,0.81733,3060.0,3059.5,2.78228822]
[1642581046883,0.81733,3060.0,3059.6,2.78171979]
[1642581047082,0.81733,3060.0,3059.7,2.77830925]
[1642581047285,0.81733,3060.0,3059.8,2.77830925]
[1642581047485,0.81733,3060.0,3059.9,2.77830925]
[1642581047688,1.63467,3060.0,3059.9,2.78001452]
[1642581048086,1.63467,3060.0,3059.9,0.00170527]
[1642581048489,1.63467,3060.0,3059.4,0.00454739]
[1642581048686,0.81734,3059.9,3059.5,2.77830925]
[1642581048885,1.63464,3059.9,3059.5,2.77830925]
[1642581049085,1.63464,3059.9,3059.6,0.00341054]
[1642581049290,1.63464,3059.9,3059.6,2.78171979]
[1642581049291,2.4520118,3059.9,3059.6,2.78171979]
[1642581049493,2.4520118,3059.9,3059.1,3.8079602]
[1642581049494,10.47013,3059.8,3059.1,3.8079602]
[1642581049732,0.81762,3059.6,3059.1,0.0231602]
[1642581049929,1.63523,3059.6,3059.2,0.0022737]
[1642581050129,1.33973,3059.6,3059.2,0.0022737]
[1642581050530,2.4527829,3059.5,3059.2,0.0022737]
[1642581050735,8.53861,3059.4,3058.8,0.001828]
[1642581050935,9.35749684,3059.4,3058.8,0.001828]
[1642581051141,0.3,3059.2,3058.9,0.00170527]
[1642581051334,0.471,3059.1,3058.2,1.48899464]
[1642581051538,0.8177662,3058.8,3058.2,1.48899464]
[1642581051735,0.471,3058.7,3058.3,0.00341054]
[1642581052133,0.81778,3058.6,3058.3,0.00341054]
[1642581052335,1.28878,3058.6,3058.3,0.00341054]
[1642581052734,2.1065946,3058.6,3058.3,0.00341054]
[1642581053602,2.1065946,3058.6,3057.5,1.54691764]
[1642581053603,7.25,3058.4,3057.5,1.54691764]
[1642581053803,3.28892,3058.3,3057.4,0.001828]
[1642581053997,0.8181577,3058.1,3057.6,0.00397896]
[1642581054194,2.10721,3058.0,3057.4,0.001828]
[1642581054396,2.10948369,3058.0,3057.4,0.001828]
[1642581054595,0.00170527,3057.9,3057.4,0.001828]
[1642581054794,0.00170527,3057.9,3056.9,1.65543915]
[1642581054795,7.25,3057.7,3056.9,1.65543915]
[1642581054998,7.25,3057.7,3056.6,1.65726715]
[1642581054999,0.8182,3057.5,3056.6,1.65726715]
[1642581055196,0.9953,3057.5,3057.0,0.00341054]
[1642581055395,7.25,3057.4,3056.3,1.65543915]
[1642581055601,7.25,3057.4,3056.7,0.00170527]
[1642581055602,0.81847,3057.1,3056.7,0.00170527]
[1642581055798,7.25,3056.9,3055.9,0.001828]
[1642581055998,0.8185,3056.6,3055.9,0.001828]
[1642581056197,0.471,3056.5,3056.0,0.00397897]
[1642581056404,0.471,3056.5,3054.9,7.98669253]
[1642581056405,7.25,3056.3,3055.1,1.65726715]
[1642581056601,0.81862,3056.1,3055.9,0.0018292]
[1642581056798,7.721,3056.0,3055.2,0.00454739]
[1642581056998,0.8186115,3055.8,3055.2,0.00637659]
[1642581057436,0.8186115,3055.8,3055.4,1.42512362]
[1642581057640,0.81863,3055.7,3055.4,1.42512362]
[1642581057835,3.2744915,3055.8,3055.7,1.63726]
[1642581058037,2.45588,3055.8,3055.7,1.63726]
[1642581058235,2.45588,3055.8,3055.7,1.63896527]
[1642581058740,1.63725,3055.8,3055.7,1.63896527]
[1642581058941,0.81851,3055.9,3055.7,1.63896527]
[1642581059137,0.71851,3055.9,3055.7,1.63896527]
[1642581059337,0.71851,3055.9,3055.8,0.00113685]
[1642581060337,0.42221,3055.9,3055.8,0.00113685]
[1642581060739,0.00113685,3056.2,3055.8,0.00113685]
[1642581060985,0.00113685,3056.2,3055.9,1.53107414]
[1642581061387,0.00113685,3056.2,3055.9,2.13107414]
[1642581061988,0.00113685,3056.2,3056.1,0.16318]
[1642581062188,0.00113685,3056.2,3056.1,7.41318]
[1642581062495,1.63626,3057.0,3056.4,2.50285366]
[1642581062689,1.63626,3057.0,3056.4,0.0022737]
[1642581062987,1.63873369,3056.6,3056.4,0.0022737]
[1642581063189,1.63873369,3056.6,3055.9,1.53107414]
[1642581063393,0.00170527,3056.5,3055.9,1.53107414]
[1642581063592,0.00170527,3056.5,3056.0,0.00113685]
[1642581063794,7.25113685,3056.4,3055.7,1.63726]
[1642581064100,0.81845,3056.2,3055.8,0.00113685]
[1642581064292,2.45537,3056.2,3055.8,0.00113685]
[1642581064494,2.45537,3056.2,3055.7,1.63726]
[1642581064495,7.25,3056.0,3055.7,1.63726]
[1642581064956,6.0,3055.9,3055.1,0.0182908]
[1642581065159,2.13899466,3055.8,3055.1,0.0182908]
[1642581065362,1.63744,3055.7,3055.3,0.00284211]
[1642581065661,2.42095992,3055.6,3055.2,0.0036584]
[1642581066060,4.8,3055.4,3055.1,0.0128032]
[1642581066362,0.00113684,3055.5,3055.1,0.02012]
[1642581066363,0.81983844,3055.5,3055.1,0.02012]
[1642581066562,0.00113684,3055.5,3055.1,0.02012]
[1642581067161,5.1918575,3056.1,3055.5,0.00188223]
[1642581067361,1.0,3056.0,3055.5,0.00188223]
[1642581067562,0.0022737,3055.9,3055.5,0.00188223]
[1642581067963,0.00170527,3055.8,3055.5,0.00188223]
[1642581068393,0.00113685,3055.7,3055.5,0.00188223]
[1642581069494,5.21846,3055.6,3055.5,0.00188223]
[1642581069687,4.95,3055.5,3055.2,2.78355483]
[1642581069887,3.08465718,3055.6,3055.3,2.78184956]
[1642581069888,0.81846,3055.6,3055.3,2.78184956]
[1642581070087,0.81846,3055.6,3055.4,2.78184956]
[1642581070489,0.52126,3055.6,3055.5,2.78184956]
[1642581071692,6.65,3055.5,3055.1,0.02012]
[1642581071893,0.471,3055.4,3055.1,0.02012]